[Event "55th Iranian-ch Men Final 2022"]
[Site "Iran"]
[Date "2022.06.16"]
[Round "3.5"]
[White "Tahbaz, Arash"]
[Black "Darini, Pouria"]
[Result "0-1"]
[ECO "B90"]
[WhiteElo "2451"]
[BlackElo "2431"]
[Annotator "TA"]
[PlyCount "62"]
[EventDate "2022.06.15"]
[EventType "tourn"]
[EventCountry "IRI"]
[SourceTitle "playchess.com"]
[Source "ChessBase"]
[SourceQuality "1"]
[TimeControl "40/5400+30:1800+30"]

{[%evp 21,62,0,0,0,0,0,0,0,0,0,12,0,35,31,24,0,71,83,111,109,194,87,191,0,211,184,196,178,478,196,422,-64,-59,-60,0,-388,-382,-547,-541,-29982,-29983,-29995,-29996]} 1. e4 {[%emt 0:00:08]} c5 {[%emt 0:00:23]} 2. Nf3 {[%emt 0:00:23]} d6 {[%emt 0:00:08]} 3. d4 {[%emt 0:00:14]} cxd4 {[%emt 0:00:06]} 4. Nxd4 {[%emt 0:00:06]} Nf6 {[%emt 0:00:05]} 5. Nc3 {[%emt 0:00:10]} a6 {[%emt 0:00:10]} 6. Be3 {[%emt 0:00:19]} e5 {[%emt 0:00:16]} 7. Nb3 {[%emt 0:00:10]} Be7 {[%emt 0:00:09]} 8. f3 {[%emt 0:00:22]} Be6 {[%emt 0:00:09]} 9. Qd2 {[%emt 0:00:14]} h5 {[%emt 0:00:28]} 10. O-O-O {[%emt 0:00:26]} Nbd7 {[%emt 0:00:28]} 11. Kb1 {[%emt 0:00:51]} Rc8 $1 {[%emt 0:00:12][%mdl 4] now scores much better than the old 11...b5.} 12. h4 {[%emt 0:01:04] B90: Sicilian Najdorf: Unusual White 6th moves, 6 Be3 Ng4 and 6 Be3 e5.} b5 {[%emt 0:00:15]} 13. a3 {[%emt 0:00:20]} O-O {[%emt 0:00:11]} 14. Bg5 {[%emt 0:01:00] The position is equal.} Re8 {[%emt 0:00:08]} 15. g3 {[%emt 0:03:49][%cal Bg2g3,Bg3g4,Bg4h5][%mdl 32] [#]} Qc7 $146 {[%emt 0:07:44]} ({Predecessor:} 15... Qb6 16. Bh3 a5 17. Nd5 Bxd5 18. exd5 Ra8 19. g4 a4 20. Nc1 hxg4 21. Be3 Qc7 22. fxg4 {0-1 (39) Aroshidze,L (2504)-Santos Ruiz,M (2517) Linares 2018}) 16. Bh3 {[%emt 0:08:35]} Rb8 {[%emt 0:13:30]} 17. Bxe6 {[%emt 0:17:16]} fxe6 {[%emt 0:00:20]} 18. g4 {[%emt 0:00:24]} a5 {[%emt 0:06:11]} (18... hxg4 $11 19. fxg4 a5 20. Bxf6 Nxf6) 19. gxh5 $1 $16 {[%emt 0:58:33] Bxf6 is the strong threat.} b4 {[%emt 0:12:24]} 20. axb4 {[%emt 0:00:21]} Rxb4 {[%emt 0:08:02]} (20... axb4 $16 {was worth a try.} 21. Ne2 Nc5) 21. Na2 {[%emt 0:01:30]} (21. Bxf6 $18 {is more deadly.} Nxf6 22. h6) 21... Rb5 {[%emt 0:10:23]} (21... Rb7 $16) 22. Nc3 $2 {[%emt 0:03:11]} (22. Bxf6 $18 Nxf6 23. Nc3) 22... Rb7 $2 {[%emt 0:04:05]} (22... Rb4 $11 {and Black is okay.}) 23. Rhg1 {[%emt 0:01:24] And now h6 would win.} a4 {[%emt 0:03:43]} 24. Nxa4 {[%emt 0:00:34]} Qc4 $2 {[%emt 0:06:47] [#]} (24... Ra8 {was necessary.}) 25. Nc3 {[%emt 0:00:30]} (25. Na5 Qxa4 26. Bxf6 (26. Nxb7 Ra8 $11) 26... Bxf6 27. Nxb7 Ra8 $11) (25. Bh6 $142 $1 Bf8 26. Bxg7 $1 {[%mdl 512]} (26. Na5 Qxa4 27. Bxg7 Bxg7 $11) 26... Bxg7 27. h6) 25... Nc5 $2 {[%emt 0:01:41]} (25... Ra8 {is a better defense.}) 26. Nxc5 $2 {[%emt 0:00:49]} (26. Na5 $18 Qa6 27. Nxb7) 26... Qxc5 $15 {[%emt 0:01:52]} 27. Qd3 $1 {[%emt 0:00:45]} Reb8 $40 {[%emt 0:00:57][%mdl 128] Black has some attack.} (27... Ra8 $15 28. h6 (28. Bxf6 $2 Rxb2+ 29. Kc1 Bxf6 $19) 28... Rxb2+ $1 29. Kc1 d5 30. Bxf6 (30. h7+ $2 Kh8 $19) 30... Ra1+ 31. Kd2 Qf2+ 32. Qe2 Qd4+ 33. Qd3 Rxd1+ 34. Rxd1 Qf2+ 35. Qe2 (35. Kc1 $2 Ba3 $19) 35... Qd4+ 36. Qd3 (36. Kc1 $2 Qxc3 37. h7+ Kxh7 $19) 36... Qf2+ 37. Qe2 (37. Kc1 $2 Ba3 $19) 37... Qd4+ 38. Qd3 (38. Kc1 $2 Qxc3 39. h7+ Kxh7 $19)) 28. b3 $2 {[%emt 0:00:28][%mdl 8192] [#]} (28. Kc1 $11 {and White stays safe.}) 28... Qa3 $1 $19 {[%emt 0:01:05][%cal Ob7b3] ( -> ...Rxb3+!)} 29. Qc4 {[%emt 0:00:33]} (29. Bc1 {[#] gets mated.} Rxb3+ $1 {[%mdl 512]} 30. cxb3 Qxb3+ 31. Ka1 Ra8+) (29. Na4 $142 Qxa4 30. Kb2) 29... Ra7 {[%emt 0:01:33][%csl Ga7][%cal Ra3a1]} 30. Qxe6+ {[%emt 0:00:17]} Kh8 {[%emt 0:00:54][%csl Ga7][%cal Ra3a1]} 31. Na4 {[%emt 0:00:27]} Rxa4 {[%emt 0:00:13] Weighted Error Value: White=1.18/Black=0.61} 0-1

[Event "55th Iranian-ch Men Final 2022"]
[Site "Iran"]
[Date "2022.06.16"]
[Round "3.6"]
[White "Ashraf, Artin"]
[Black "Atakhan, Abtin"]
[Result "1-0"]
[ECO "D27"]
[WhiteElo "2096"]
[BlackElo "2358"]
[Annotator "TA"]
[PlyCount "107"]
[EventDate "2022.06.15"]
[EventType "tourn"]
[EventCountry "IRI"]
[SourceTitle "playchess.com"]
[Source "ChessBase"]
[SourceQuality "1"]
[TimeControl "40/5400+30:1800+30"]

{[%evp 24,107,28,15,15,16,20,15,20,0,34,27,36,47,79,35,76,62,62,66,119,64,69,81,108,81,144,137,127,137,223,179,182,185,195,199,177,178,215,163,151,126,122,131,114,119,175,172,175,72,72,75,66,75,131,119,129,118,129,133,135,125,125,125,125,125,131,55,133,147,316,312,281,265,365,357,384,328,429,426,483,480,772,702,1256,1073]} 1. d4 {[%emt 0:05:30]} d5 {[%emt 0:01:59]} 2. c4 {[%emt 0:00:35]} dxc4 {[%emt 0:01:49]} 3. Nf3 {[%emt 0:02:54]} Nf6 {[%emt 0:00:18]} 4. e3 {[%emt 0:00:09]} a6 {[%emt 0:00:13]} 5. Bxc4 {[%emt 0:00:20]} e6 {[%emt 0:00:05]} 6. b3 {[%emt 0:00:15]} b5 {[%emt 0:01:19]} 7. Be2 {[%emt 0:00:02]} Bb7 {[%emt 0:01:31]} 8. O-O {[%emt 0:00:10]} Nbd7 {[%emt 0:01:10]} 9. Bb2 {[%emt 0:00:10]} c5 {[%emt 0:01:52]} 10. Nbd2 {[%emt 0:03:44]} Be7 {[%emt 0:06:47]} 11. a4 {[%emt 0:05:16]} b4 {[%emt 0:00:21]} 12. Nc4 {[%emt 0:03:27]} O-O {[%emt 0:01:39]} 13. Rc1 {[%emt 0:10:44]} Rc8 {[%emt 0:02:06] D27: Queen's Gambit Accepted: Classical main line: 7 e4!? and 7 a4.} 14. Nfe5 {[%emt 0:01:30]} cxd4 {[%emt 0:23:31]} 15. Nxd7 {[%emt 0:08:13]} Nxd7 {[%emt 0:01:59][%cal Bf6d7,Bd7c5,Bc5e4][%mdl 32] The position is equal.} 16. Bxd4 {[%emt 0:01:58]} (16. Qxd4 {seems wilder.} Bf6 17. Qa7 Qc7 18. Ne5) 16... Nc5 {[%emt 0:04:09]} 17. a5 {[%emt 0:10:12] [#] Hoping for Nb6.} Ne4 $146 {[%emt 0:18:49]} ({Predecessor:} 17... Bd5 18. Nb6 Bxb3 19. Qd2 Rc7 20. Qb2 Bf6 21. Bxf6 Qxf6 22. Qd4 Qe7 23. Qxb4 Bd5 24. Rc3 Nb7 25. Qxe7 Rxe7 26. Ra1 Nd6 27. Bxa6 {1-0 (27) Kharitonov,A (2558)-Grinblat,A (2176) Malevizi 2016}) 18. Bf3 {[%emt 0:08:37]} Bc5 {[%emt 0:07:18]} 19. Qc2 {[%emt 0:11:30]} (19. Nb6 Bxb6 20. Bxb6 Qxd1 21. Rcxd1 (21. Rfxd1 Rxc1 22. Rxc1 Nc3 $11) 21... e5 $14) (19. Bxe4 $5 Bxe4 20. Qg4 Bxd4 21. Qxe4 $16) 19... Bxd4 {[%emt 0:02:57]} 20. Bxe4 {[%emt 0:00:27]} Bxe4 {[%emt 0:01:04]} 21. Qxe4 {[%emt 0:00:03]} Bc3 {[%emt 0:00:26] [#]} ({Black should try} 21... Bf6 $14) 22. Rcd1 {[%emt 0:00:39]} (22. Qb7 $1 $16) 22... Qe7 $14 {[%emt 0:01:11]} 23. Rd3 {[%emt 0:00:39][%cal Bd1d3,Bd3d6,Bd6b6][%mdl 32]} g6 {[%emt 0:01:47]} 24. Rfd1 $36 {[%emt 0:00:32][%mdl 2048] White has strong initiative.} Rc7 {[%emt 0:01:12]} ({Better is} 24... Rcd8) 25. Rd6 {[%emt 0:00:38]} Ra7 {[%emt 0:00:42]} 26. g3 {[%emt 0:00:11]} Raa8 {[%emt 0:04:27]} (26... h5 $16 {is a better defense.} 27. Qc6 Qg5) 27. Rb6 {[%emt 0:02:03]} Rfd8 {[%emt 0:01:26]} 28. Rdd6 {[%emt 0:01:33]} Ra7 {[%emt 0:06:35]} 29. Qd3 {[%emt 0:00:24]} (29. Rxa6 Rxd6 30. Rxd6 Rxa5 $11) 29... Rda8 {[%emt 0:00:42]} 30. Rbc6 {[%emt 0:00:25] Black must now prevent Nb6.} Qg5 {[%emt 0:00:33]} 31. h4 {[%emt 0:03:43]} Qb5 {[%emt 0:00:37]} 32. Rd8+ {[%emt 0:00:32]} Kg7 {[%emt 0:00:02]} 33. Rxa8 {[%emt 0:00:29] White is much more active. The black rooks are badly placed.} Rxa8 {[%emt 0:00:05]} 34. Rc7 {[%emt 0:00:25][%cal Oc7f7] Strongly threatening Rxf7+!} Qd5 {[%emt 0:02:15]} (34... Be5 $16 35. Re7 (35. Rd7 Rc8 $16) 35... Rf8) 35. Qxd5 $18 {[%emt 0:04:08]} exd5 {[%emt 0:00:01][%mdl 4096] Endgame KRB-KRN} 36. Nb6 {[%emt 0:00:22]} (36. Nd6 $18 {and the rest is easy.}) 36... Rd8 $16 {[%emt 0:01:25]} 37. Rd7 {[%emt 0:05:43]} Rxd7 {[%emt 0:01:08]} 38. Nxd7 {[%emt 0:00:03] KB-KN} Bf6 {[%emt 0:00:31]} (38... f5 $142) 39. Kf1 {[%emt 0:00:14]} Bd8 {[%emt 0:01:33]} 40. Nb6 {[%emt 0:00:00]} f5 {[%emt 0:00:00]} 41. Ke2 {[%emt 0:01:20]} ({Much less strong is} 41. Nxd5 Bxa5 42. Ke2 Kf7) 41... Kf7 {[%emt 0:01:22]} 42. Kd3 {[%emt 0:00:47]} Ke6 {[%emt 0:00:01]} 43. Kd4 {[%emt 0:00:14]} Kd6 {[%emt 0:02:36]} 44. Nxd5 {[%emt 0:00:09]} Bxa5 {[%emt 0:00:01] [#]} 45. Kc4 {[%emt 0:00:20]} (45. Nf6 $1 $16 {[%cal Rf6h7]}) 45... Bd8 {[%emt 0:00:11]} ({Black should play} 45... Ke5 $14) 46. Nxb4 {[%emt 0:00:15]} a5 {[%emt 0:00:00] Black cannot hold the game after this.} (46... Ba5 $16 47. Nd3 (47. Nxa6 Be1 $11) 47... Bd2) 47. Nd5 $18 {[%emt 0:00:38]} Ke5 {[%emt 0:00:37]} 48. f3 {[%emt 0:00:20]} h6 {[%emt 0:00:44]} 49. Nf4 {[%emt 0:01:51]} g5 {[%emt 0:01:56]} 50. hxg5 {[%emt 0:00:14]} hxg5 {[%emt 0:00:02]} 51. Nd3+ {[%emt 0:00:54] White is clearly winning.} Ke6 {[%emt 0:01:05]} 52. Nc5+ {[%emt 0:03:27]} Kf6 {[%emt 0:01:58]} (52... Ke5 $142 53. f4+ Kf6) 53. Kd5 {[%emt 0:00:08] Threatens to win with g4.} Bc7 {[%emt 0:01:04]} 54. g4 {[%emt 0:00:12] Weighted Error Value: White=0.11 (very precise) /Black=0.31} 1-0

[Event "55th Iranian-ch Men Final 2022"]
[Site "Iran"]
[Date "2022.06.16"]
[Round "3.7"]
[White "Ghaem Maghami, Ehsan"]
[Black "Mousavi, Seyed Khalil"]
[Result "1/2-1/2"]
[ECO "D32"]
[WhiteElo "2519"]
[BlackElo "2524"]
[Annotator "TA"]
[PlyCount "94"]
[EventDate "2022.06.15"]
[EventType "tourn"]
[EventCountry "IRI"]
[SourceTitle "playchess.com"]
[Source "ChessBase"]
[SourceQuality "1"]
[TimeControl "40/5400+30:1800+30"]

{[%evp 11,94,47,52,22,18,27,29,11,27,17,28,28,25,42,81,50,120,95,180,173,158,160,201,121,233,252,215,195,199,212,225,223,250,243,264,172,170,164,156,155,160,170,193,143,400,382,395,339,383,15,8,8,8,0,0,-40,-40,-40,-40,-40,-40,-40,-40,-121,-110,-208,-208,-189,-189,-208,-201,-193,-187,-121,-8,-8,-8,-8,-8,-8,-8,-8,-8,-8,-8]} 1. Nf3 {[%emt 0:00:18]} d5 {[%emt 0:01:43]} 2. d4 {[%emt 0:00:08]} Nf6 {[%emt 0:00:34]} 3. c4 {[%emt 0:00:09]} e6 {[%emt 0:00:07]} 4. Nc3 {[%emt 0:02:00]} c5 {[%emt 0:00:54]} 5. cxd5 {[%emt 0:01:31]} exd5 {[%emt 0:00:16]} 6. Bg5 {[%emt 0:03:36][%cal Bc1g5,Bg5h4,Bh4g3][%mdl 32]} Be6 {[%emt 0:00:07]} 7. dxc5 {[%emt 0:26:40][%cal Oe2e4] D32: Tarrasch Defence: Sidelines and lines without g3.} Bxc5 {[%emt 0:02:29]} 8. e3 {[%emt 0:00:17] Against d4} O-O {[%emt 0:08:03]} 9. Bb5 {[%emt 0:11:29] White has an edge.} h6 {[%emt 1:20:47] [#]} 10. Bh4 $146 {[%emt 0:00:23]} ({Predecessor:} 10. Bxf6 Qxf6 11. O-O Rd8 12. Rc1 Bb6 13. Nd4 Bxd4 14. Qxd4 Qxd4 15. exd4 Bd7 16. Be2 {½-½ (45) Stocek,J (2595)-Hracek,Z (2563) Plzen 2020}) 10... g5 {[%emt 0:00:00]} 11. Bg3 {[%emt 0:00:18]} Ne4 {[%emt 0:00:00]} 12. O-O {[%emt 0:03:20]} Qa5 {[%emt 0:00:00]} 13. Bd3 {[%emt 0:04:22]} f5 {[%emt 0:00:00]} (13... Nxg3 $14 14. hxg3 Qd8) 14. Rc1 {[%emt 0:08:05]} Nd7 {[%emt 0:00:00]} (14... Nxg3 $16 15. hxg3 Nc6) 15. Nb5 $1 $18 {[%emt 0:08:03]} Nxg3 {[%emt 0:00:00]} 16. hxg3 {[%emt 0:00:17]} Qb6 {[%emt 0:00:00]} 17. Nfd4 {[%emt 0:07:22]} Rae8 {[%emt 0:00:00]} (17... Bxd4 $16 18. Nxd4 Ne5) 18. Nxe6 {[%emt 0:05:31]} Rxe6 {[%emt 0:00:00]} 19. Nc3 {[%emt 0:00:22]} Qd6 {[%emt 0:00:00] [#]} 20. Nxd5 {[%emt 0:03:05][%cal Ob2b4][%mdl 512]} Kh8 {[%emt 0:00:00]} (20... Kg7 21. Qb3) 21. Bc4 {[%emt 0:01:23][%cal Ob2b4] b4! is the strong threat.} Qe5 {[%emt 0:00:00]} 22. b4 {[%emt 0:05:23]} Bd6 {[%emt 0:00:00]} 23. Qh5 {[%emt 0:02:55] Against Rg6} Nf6 {[%emt 0:00:00][%cal Bd7f6,Bf6h7,Bh7g5,Bg5h3][%mdl 32]} 24. Qxh6+ {[%emt 0:00:46]} Nh7 {[%emt 0:00:00]} 25. Qh5 {[%emt 0:00:13]} Qg7 {[%emt 0:00:00]} 26. Qe2 {[%emt 0:02:08][%cal Od5c7]} Rh6 {[%emt 0:00:00]} 27. Bb3 {[%emt 0:00:52]} ({White should try} 27. Qd3 $18) 27... f4 $2 {[%emt 0:00:00][%mdl 8192]} (27... Nf6 $16 28. Nxf6 Qxf6) 28. exf4 {[%emt 0:01:16]} gxf4 {[%emt 0:00:00]} 29. gxf4 {[%emt 0:00:55]} Ng5 {[%emt 0:00:00] ( -> ...Nh3+)} 30. Qg4 {[%emt 0:01:46] Against Nh3+} (30. fxg5 {gets mated.} Rh1+ $3 {[%mdl 512]} 31. Kxh1 Qh7+) ({White has to play} 30. g3 $1 $18 Ne6 31. Kg2) 30... Nh3+ $11 {[%emt 0:00:00][%mdl 64] Discovered Attack} 31. gxh3 {[%emt 0:01:07]} Rg6 {[#]} 32. Rc3 $1 {[%emt 0:00:00][%cal Og1g2]} Bxf4 $1 {[%emt 0:00:00]} 33. Nxf4 {[%emt 0:00:15]} Rxg4+ {[%emt 0:00:00]} 34. hxg4 {[%emt 0:00:07] Black must now prevent Rh3+.} Qxc3 {[%emt 0:00:00]} 35. Ng6+ {[%emt 0:00:20]} Kg7 {[%emt 0:00:00]} 36. Nxf8 {[%emt 0:00:04]} Kxf8 $15 {[%emt 0:00:00][%mdl 4096] Endgame KQ-KRB} 37. Kg2 {[%emt 0:01:34]} (37. b5 $15) 37... Qxb4 $17 {[%emt 0:00:00]} 38. f3 {[%emt 0:00:29] [#]} (38. Kf3 $17) 38... a5 $1 $19 {[%emt 0:00:00][%cal Ba7a5,Ba5a4][%mdl 1056] Black has strong compensation.} 39. Rf2 {[%emt 0:00:21]} b5 {[%emt 0:01:00]} 40. Bd5 {[%emt 0:00:00]} a4 {[%emt 0:00:00]} 41. Be4 {[%emt 0:02:32]} Qa3 {[%emt 0:06:45]} 42. g5 {[%emt 0:03:55]} (42. Rc2 $19) 42... b4 {[%emt 0:02:10]} (42... Qd6 $17 {Threatens to win with ...b4.} 43. Rc2 b4) 43. Rc2 $11 {[%emt 0:00:41] The position is equal.} b3 {[%emt 0:07:13]} 44. axb3 {[%emt 0:26:12]} ({Don't play} 44. Rc8+ Ke7 45. axb3 (45. Rc7+ $2 Kd8 $19) 45... Qb2+ 46. Rc2 Qxb3 47. Rc7+ Kd6 $17) 44... Qxb3 {[%emt 0:30:22] aiming for ...a3.} 45. Rc8+ $1 {[%emt 0:00:30]} Ke7 {And now ...a3 would win.} 46. g6 $1 {[%emt 0:00:30] Threatening mate with g7.} a3 47. g7 {[%emt 0:00:30]} a2 {Never resign too early!  Weighted Error Value: White=0.25 (precise) /Black=0.24 (precise)} (47... Qb2+ 48. Kh3 Qxg7 49. Rc7+ Kf8 50. Rxg7 Kxg7 51. Bb1 Kh6 52. Kg4) 1/2-1/2

[Event "55th Iranian-ch Men Final 2022"]
[Site "Iran"]
[Date "2022.06.17"]
[Round "4.1"]
[White "Mosadeghpour, Masoud"]
[Black "Mousavi, Seyed Khalil"]
[Result "1/2-1/2"]
[ECO "C70"]
[WhiteElo "2474"]
[BlackElo "2524"]
[Annotator "TA"]
[PlyCount "49"]
[EventDate "2022.06.15"]
[EventType "tourn"]
[EventCountry "IRI"]
[SourceTitle "playchess.com"]
[Source "ChessBase"]
[SourceQuality "1"]
[TimeControl "40/5400+30:1800+30"]

{[%evp 9,49,38,53,45,27,39,23,23,29,31,47,33,26,43,35,37,49,37,35,0,0,0,14,19,29,31,23,29,27,0,0,0,0,0,0,0,9,0,0,0,17,20]} 1. e4 {[%emt 0:09:57]} e5 {[%emt 0:00:58]} 2. Nf3 {[%emt 0:01:23]} Nc6 {[%emt 0:00:11]} 3. Bb5 {[%emt 0:01:11]} a6 {[%emt 0:00:23]} 4. Ba4 {[%emt 0:00:49]} Nge7 {[%emt 0:00:35]} 5. c3 {[%emt 0:02:48]} g6 {[%emt 0:00:56]} 6. d4 {[%emt 0:00:57] C70: Ruy Lopez: 3...a6 4 Ba4, Norwegian and Delayed Schliemann.} exd4 {[%emt 0:00:41]} 7. cxd4 {[%emt 0:00:07] Black must now prevent d5.} b5 {[%emt 0:00:22]} 8. d5 {[%emt 0:00:21] White has an edge.} bxa4 {[%emt 0:00:54]} 9. dxc6 {[%emt 0:00:31] Threatens to win with Qd4.} Nxc6 {[%emt 0:00:45]} 10. Qxa4 {[%emt 0:00:27]} Bg7 {[%emt 0:01:20]} 11. Bg5 {[%emt 0:08:00]} f6 {[%emt 0:00:20]} 12. Bf4 {[%emt 0:02:00]} O-O {[%emt 0:02:36]} 13. Nc3 {[%emt 0:08:56]} Rb8 {[%emt 0:06:47]} 14. Nd5 {[%emt 0:12:04]} Ne5 {[%emt 0:09:37]} ({Don't play} 14... Rxb2 15. Bxc7 Qe8 16. Bd6 $16) 15. Nxf6+ {[%emt 0:05:16]} Bxf6 {[%emt 0:03:14]} 16. Bxe5 {[%emt 0:02:37]} ({Much weaker is} 16. Nxe5 Qe7 17. Nd3 Bxb2 $15) 16... Bxe5 {[%emt 0:04:15]} 17. Nxe5 {[%emt 0:00:18]} Rxb2 {[%emt 0:02:12]} 18. O-O {[%emt 0:04:18]} Rb5 {[%emt 0:01:44]} 19. f4 {[%emt 0:13:05]} d6 {[%emt 0:15:08][%cal Bd7d6,Bd6d5][%mdl 32] The position is equal.} 20. Qc4+ {[%emt 0:09:32] [#]} d5 $146 {[%emt 0:04:13]} ({Predecessor:} 20... Kg7 21. Nc6 Qe8 22. Rac1 Bd7 23. Nb4 c6 24. Qd4+ Kg8 25. Qxd6 Qxe4 26. Qxd7 Rxb4 27. Kh1 {0-1 (27) Hou,Y (2658)-Ponomariov,R (2686) Shenzhen 2018}) 21. Qc2 {[%emt 0:06:30]} Qd6 {[%emt 0:04:12]} 22. Rad1 {[%emt 0:02:17]} Be6 {[%emt 0:05:06]} 23. Kh1 {[%emt 0:02:39]} Qc5 {[%emt 0:11:58]} 24. Qe2 {[%emt 0:02:45]} dxe4 {[%emt 0:00:45]} 25. Qxe4 {[%emt 0:00:48] Weighted Error Value: White=0.04 (flawless) /Black=0.02 (flawless)} 1/2-1/2

[Event "55th Iranian-ch Men Final 2022"]
[Site "Iran"]
[Date "2022.06.17"]
[Round "4.2"]
[White "Atakhan, Abtin"]
[Black "Ghaem Maghami, Ehsan"]
[Result "1/2-1/2"]
[ECO "D46"]
[WhiteElo "2358"]
[BlackElo "2519"]
[Annotator "TA"]
[PlyCount "49"]
[EventDate "2022.06.15"]
[EventType "tourn"]
[EventCountry "IRI"]
[SourceTitle "playchess.com"]
[Source "ChessBase"]
[SourceQuality "1"]
[TimeControl "40/5400+30:1800+30"]

{[%evp 20,49,23,3,10,9,10,0,0,0,0,0,0,0,0,0,0,0,0,0,0,-8,-10,-8,0,0,0,0,0,0,0,-518]} 1. d4 {[%emt 0:00:02]} Nf6 {[%emt 0:12:23]} 2. c4 {[%emt 0:00:15]} e6 {[%emt 0:01:35]} 3. Nf3 {[%emt 0:00:12]} d5 {[%emt 0:07:59]} 4. Nc3 {[%emt 0:00:10]} c6 {[%emt 0:03:22]} 5. e3 {[%emt 0:00:21]} Nbd7 {[%emt 0:00:07]} 6. Qc2 {[%emt 0:00:19]} Bd6 {[%emt 0:00:24]} 7. Bd3 {[%emt 0:00:11]} O-O {[%emt 0:02:37]} 8. O-O {[%emt 0:00:06]} dxc4 {[%emt 0:01:41]} 9. Bxc4 {[%emt 0:00:02]} Qe7 {[%emt 0:01:54]} 10. h3 {[%emt 0:08:33]} e5 {[%emt 0:02:20]} 11. Bb3 {[%emt 0:11:35]} b5 {[%emt 0:11:47] The position is equal. Recently 11...a5 got a lot of attention. D46: Semi-Slav: 5 e3 Nbd7 6 Bd3, Black avoids the Meran.} 12. a3 {[%emt 0:18:45]} Bb7 {[%emt 0:10:36]} 13. dxe5 {[%emt 0:05:41]} Nxe5 {[%emt 0:02:24]} 14. Nd4 {[%emt 0:00:09] [#]} g6 $146 {[%emt 0:13:12] Prevents Nf5.} ({Predecessor:} 14... Bb8 15. e4 c5 16. Nf5 Qc7 17. f4 c4 18. Ba2 Nd3 19. e5 Qd7 20. Ng3 g5 21. exf6 gxf4 {0-1 (30) Murashko,V (2385)-Nikitin,A (2471) Alushta 2002}) 15. e4 {[%emt 0:12:41]} Bc5 {[%emt 0:03:28]} 16. Be3 {[%emt 0:04:02]} Bxd4 {[%emt 0:05:12]} 17. Bxd4 {[%emt 0:00:02] And now f4 would win.} c5 {[%emt 0:00:07]} 18. Bxe5 {[%emt 0:07:33]} Qxe5 {[%emt 0:00:10]} 19. Nxb5 {[%emt 0:00:25]} Bxe4 {[%emt 0:02:26]} 20. Qc3 {[%emt 0:02:16]} ({But not} 20. f4 Qb8 21. Qe2 (21. Qxc5 Bd3 $17) 21... a6 $17) 20... Qxc3 {[%emt 0:02:02]} 21. Nxc3 {[%emt 0:00:06]} Bd3 {[%emt 0:03:35]} 22. Rfd1 {[%emt 0:28:04]} c4 23. Ba2 {[%emt 0:00:30]} Rab8 {[%emt 0:12:39]} 24. Rd2 {[%emt 0:00:30]} Rfc8 {[%emt 0:00:30]} 25. Bb3 $2 {[%emt 0:00:30][%mdl 40960] Weighted Error Value: White=0.03 (flawless) /Black=0.01 (flawless) . An unexpected result.} 1/2-1/2

[Event "55th Iranian-ch Men Final 2022"]
[Site "Iran"]
[Date "2022.06.17"]
[Round "4.3"]
[White "Darini, Pouria"]
[Black "Ashraf, Artin"]
[Result "1-0"]
[ECO "B12"]
[WhiteElo "2431"]
[BlackElo "2096"]
[Annotator "TA"]
[PlyCount "59"]
[EventDate "2022.06.15"]
[EventType "tourn"]
[EventCountry "IRI"]
[SourceTitle "playchess.com"]
[Source "ChessBase"]
[SourceQuality "1"]
[TimeControl "40/5400+30:1800+30"]

{[%evp 9,59,17,36,33,29,36,19,74,72,27,29,20,17,12,25,19,33,35,58,68,81,60,67,62,68,28,40,45,31,30,47,33,70,39,74,69,67,75,75,76,97,93,89,56,71,49,97,110,133,113,1593,1482]} 1. e4 {[%emt 0:00:03]} c6 {[%emt 0:06:50]} 2. d4 {[%emt 0:00:07]} d5 {[%emt 0:00:09]} 3. e5 {[%emt 0:00:06]} Bf5 {[%emt 0:00:03]} 4. Nf3 {[%emt 0:00:26]} e6 {[%emt 0:00:08]} 5. Be2 {[%emt 0:00:05]} Ne7 {[%emt 0:00:17][%cal Oc6c5]} 6. c3 {[%emt 0:00:15] B12: Caro-Kann: Advance Variation.} Ng6 {[%emt 0:01:42]} 7. O-O {[%emt 0:05:05]} f6 {[%emt 0:00:14]} 8. exf6 {[%emt 0:13:50]} (8. Qb3 $11) 8... Qxf6 $16 {[%emt 0:00:18]} 9. Bg5 {[%emt 0:06:09]} (9. Qb3 $5 {[%cal Rb3b7]} b6 10. c4 $14 (10. Bg5 Qf7 $11)) 9... Qf7 {[%emt 0:00:20]} 10. Nh4 {[%emt 0:08:55]} Nxh4 {[%emt 0:00:22]} 11. Bxh4 {[%emt 0:00:03]} Bd6 {[%emt 0:00:23]} 12. Nd2 {[%emt 0:05:30]} Nd7 {[%emt 0:10:15] [#]} 13. Bh5 $146 {[%emt 0:11:32]} ({Predecessor:} 13. Qb3 O-O 14. Nf3 a5 15. Bg3 Qe7 16. Rae1 Bxg3 17. hxg3 Qd6 18. a3 b5 19. Qd1 {½-½ (55) Rallabandi,P (2485)-Tauber,H (2514) ICCF email 2019}) 13... Bg6 {[%emt 0:12:40]} 14. Bxg6 {[%emt 0:00:44]} Qxg6 {[%emt 0:05:52]} 15. Bg3 {[%emt 0:10:16]} Bxg3 {[%emt 0:08:22]} 16. fxg3 {[%emt 0:00:04]} O-O-O {[%emt 0:02:20]} 17. Qa4 {[%emt 0:00:02]} a6 {[%emt 0:05:43]} 18. Rae1 {[%emt 0:00:06] Prevents e5.} Rhf8 {[%emt 0:01:56]} 19. Nf3 {[%emt 0:00:27]} Rf6 {[%emt 0:00:58]} 20. Re2 {[%emt 0:01:54]} Rdf8 {[%emt 0:01:50]} 21. Rfe1 {[%emt 0:02:42]} Qf7 {[%emt 0:00:56]} 22. Qd1 {[%emt 0:00:53] White is more active.} h6 {[%emt 0:05:47] Prevents Ng5.} 23. Re3 {[%emt 0:00:03]} g5 {[%emt 0:06:51]} 24. g4 {[%emt 0:00:02]} Kd8 {[%emt 0:01:03]} 25. Qe2 {[%emt 0:01:06]} Re8 {[%emt 0:03:41]} 26. c4 {[%emt 0:00:27]} dxc4 {[%emt 0:02:18]} 27. Qxc4 {[%emt 0:00:12]} Nb6 {[%emt 0:00:22]} (27... Kc7 $14 {was preferrable.}) 28. Qc5 {[%emt 0:00:17]} Nd5 {[%emt 0:00:45]} 29. Rb3 {[%emt 0:01:03] [#] Hoping for Qa7.} Qe7 $2 {[%emt 0:01:34][%mdl 8192]} (29... Qc7 $16) 30. Qa7 {[%emt 0:33:06] Weighted Error Value: White=0.08 (flawless) /Black=0.10 (very precise)} 1-0